bitfinex-derivatives/quotes_ETHF0:USTF0_20250520
["timestamp","ask_amount","ask_price","bid_price","bid_amount"]
[1747740963239,0.09347,2516.3,2516.2,10.09887715]
[1747740963448,0.79441,2516.9,2516.4,1.98636]
[1747740963645,4.99836,2517.5,2517.1,0.79429]
[1747740963858,0.79432,2517.2,2517.1,0.79429]
[1747740964146,0.79429,2517.3,2517.2,0.79427]
[1747740964353,0.79429,2517.3,2517.2,1.0807751]
[1747740964550,0.79429,2517.3,2517.2,2.2728001]
[1747740964746,2.78058501,2517.3,2517.2,0.2865051]
[1747740964948,2.78058501,2517.3,2517.2,0.41062963]
[1747740965147,5.85738501,2517.3,2517.2,0.41062963]
[1747740965350,2.78058501,2517.3,2517.2,1.20492963]
[1747740965543,0.00595758,2517.4,2517.2,12.20619463]
[1747740965749,0.80020758,2517.4,2517.3,1.08020301]
[1747740966155,0.80020758,2517.4,2517.3,3.19054254]
[1747740966651,0.80020758,2517.4,2517.3,3.98318254]
[1747740966949,0.00595758,2517.4,2517.3,7.98524254]
[1747740967154,0.00595758,2517.4,2517.3,12.98524254]
[1747740967449,0.00595758,2517.4,2517.3,12.98447392]
[1747740968545,3.2078,2518.0,2517.4,1.98558]
[1747740968751,0.79414,2517.8,2517.7,0.79412]
[1747740969050,0.79414,2517.8,2517.7,10.09329439]
[1747740969354,0.79414,2517.8,2517.7,12.20331892]
[1747740969854,0.79414,2517.8,2517.7,13.74031892]
[1747740970153,0.79414,2517.8,2517.7,4.72631892]
[1747740970353,0.79414,2517.8,2517.7,13.74031892]
[1747740970753,0.79414,2517.8,2517.7,13.73949247]
[1747740970953,0.79414,2517.8,2517.7,3.93137247]
[1747740971146,2.78004001,2517.8,2517.7,0.12412453]
[1747740971353,2.78004001,2517.8,2517.7,9.13612453]
[1747740971547,2.78004001,2517.8,2517.7,0.12412453]
[1747740971749,4.36774001,2517.8,2517.7,0.12412453]
[1747740972047,0.79426,2517.3,2517.2,1.4919]
[1747740972255,0.79426,2517.3,2517.2,10.91236034]
[1747740972454,0.79426,2517.3,2517.2,12.89869774]
[1747740972653,2.78055501,2517.3,2517.2,1.90040274]
[1747740972955,2.78055501,2517.3,2517.2,1.61601832]
[1747740973156,2.78055501,2517.3,2517.2,0.12411832]
[1747740973353,4.36285501,2517.3,2517.2,9.13611832]
[1747740974052,5.95055501,2517.3,2517.2,9.13611832]
[1747740974245,5.95055501,2517.3,2517.2,0.12411832]
[1747740974453,5.95055501,2517.3,2517.2,9.13611832]
[1747740974754,4.36285501,2517.3,2517.2,9.13611832]
[1747740975052,4.36285501,2517.3,2517.2,10.60031832]
[1747740975355,0.79426,2517.3,2517.2,12.58661332]
[1747740977261,0.79426,2517.3,2517.2,12.8714341]
[1747740977457,0.79426,2517.3,2517.2,12.87156336]
[1747740977659,0.79426,2517.3,2517.2,12.87156444]
[1747740979155,0.79426,2517.3,2517.2,3.85979193]
[1747740979365,2.78055501,2517.3,2517.2,10.88549693]
[1747740979663,2.78055501,2517.3,2516.5,5.28142451]
[1747740979664,7.98529501,2517.3,2516.5,0.24393451]
[1747740979858,0.79477,2515.7,2515.6,0.81546416]
[1747740980055,0.79477,2515.7,2514.2,12.2198]
[1747740980056,0.79486,2515.4,2515.3,1.83e-06]
[1747740980459,0.79512,2514.6,2514.5,1.4816]
[1747740980759,3.2078,2514.6,2514.5,11.000425]
[1747740980959,0.00595758,2514.8,2514.5,12.482025]
[1747740981159,0.80101758,2514.8,2514.5,13.277145]
[1747740981559,0.00595758,2514.8,2514.5,12.482025]
[1747740981761,0.79511,2514.7,2514.5,12.48195]
[1747740981964,0.80102758,2514.8,2514.6,0.7951]
[1747740982157,0.80102758,2514.8,2514.7,1.4816]
[1747740982360,0.80102758,2514.8,2514.7,12.48187]
[1747740982664,0.00595758,2514.8,2514.7,13.27696]
[1747740983267,3.2078,2515.6,2514.7,18.27696]
[1747740983458,4.00261,2515.6,2514.9,3.2078]
[1747740983653,4.00261,2515.6,2515.4,0.79485]
[1747740983857,4.00261,2515.6,2515.5,10.6229]
[1747740984260,4.00261,2515.6,2515.5,12.61053499]
[1747740984466,5.990245,2515.6,2515.5,10.6229]
[1747740986067,4.00261,2515.6,2515.5,10.6229]
[1747740986369,5.990245,2515.6,2515.5,10.6229]
[1747740986570,5.990245,2515.6,2515.5,8.99]
[1747740986764,0.79483,2515.5,2515.4,8.99]
[1747740986966,1.98717,2515.4,2514.8,0.31804356]
[1747740987167,0.79493,2515.2,2515.1,8.99]
[1747740987461,4.00273,2515.2,2515.1,8.99]
[1747740987668,7.543285,2515.2,2515.1,8.99]
[1747740988363,7.543285,2515.2,2514.9,1.4835]
[1747740988364,0.79499,2515.0,2514.9,1.4835]
[1747740988565,0.79508,2514.7,2514.6,0.31804356]
[1747740988758,3.2078,2515.0,2514.6,9.30904356]
[1747740988971,3.2078,2515.0,2514.9,0.79502]
[1747740989474,3.2078,2515.0,2514.9,2.78313]
[1747740990566,0.79494,2515.2,2515.1,0.79496]
[1747740990767,0.79494,2515.2,2515.1,8.991]
[1747740990969,0.79494,2515.2,2515.1,10.978955]
[1747740991169,0.79494,2515.2,2515.1,1.987955]
[1747740991373,0.79494,2515.2,2515.1,11.773915]
[1747740991662,0.79494,2515.2,2515.1,11.89813211]
[1747740995071,3.2078,2515.3,2515.1,11.89813211]
[1747740995072,3.2078,2515.3,2515.2,0.79493]
[1747740995272,4.00264,2515.6,2515.5,0.79483]
[1747740995472,4.00264,2515.6,2515.5,9.78683]
[1747740995673,4.00264,2515.6,2515.5,9.91104711]
[1747740995863,3.2078,2515.6,2515.5,11.8986821]
[1747740996062,0.00595758,2515.8,2515.7,0.79477]
[1747740996461,0.00595758,2515.8,2515.7,2.90646711]
[1747740997073,0.00595758,2515.8,2515.7,6.11426711]
[1747740997373,0.00595758,2515.8,2515.7,51.18026711]
[1747740997771,3.2078,2516.2,2516.1,0.79464]
[1747740997972,3.2078,2516.2,2516.1,9.78664]
[1747740998176,3.2078,2516.2,2516.1,11.8980221]
[1747740998868,4.00241,2516.2,2516.1,9.90985711]
[1747740999068,4.00241,2516.2,2516.1,11.8970221]
[1747741001977,3.2078,2516.2,2516.1,11.8970221]
[1747741003580,3.2078,2516.2,2516.1,12.21501228]
[1747741004378,4.00241,2516.2,2516.1,12.21501228]
[1747741004571,5.989575,2516.2,2516.1,0.44220729]
[1747741004781,5.989575,2516.2,2516.1,9.43220729]
[1747741004976,5.989575,2516.2,2516.1,0.44220729]
[1747741005481,10.989575,2516.2,2516.1,0.44220729]
[1747741005672,10.989575,2516.2,2516.1,0.12421711]
[1747741005872,10.989575,2516.2,2516.1,7.11e-06]
[1747741006983,10.989575,2516.2,2516.1,8.99000711]
[1747741007183,10.989575,2516.2,2516.1,7.11e-06]
[1747741007385,5.989575,2516.2,2516.1,8.99000711]
[1747741010489,6.07443977,2516.2,2516.1,8.99000711]
[1747741013306,4.08727477,2516.2,2516.1,9.30790987]
[1747741019495,4.08727477,2516.2,2516.1,12.08971486]
[1747741020191,3.82901711,2516.2,2516.1,12.08971486]
[1747741020398,3.03440711,2516.2,2516.1,12.08971486]
[1747741020692,2.64702897,2516.2,2516.1,12.08971486]
[1747741020898,0.08486477,2516.2,2516.1,12.08971486]
[1747741021593,0.08486477,2516.2,2516.1,12.57510076]
[1747741021799,4.08727477,2516.2,2516.1,3.08930347]
[1747741022003,4.08727477,2516.2,2516.1,12.06130347]
[1747741022198,4.08727477,2516.2,2516.1,10.07413848]
[1747741022798,4.08727477,2516.2,2516.1,9.77529577]
[1747741023100,4.08727477,2516.2,2516.1,9.59017036]
[1747741024501,4.08727477,2516.2,2516.1,9.59052015]
[1747741026209,5.13299767,2516.4,2516.3,0.79458]
[1747741026210,0.00591767,2516.4,2516.3,0.79458]
[1747741026501,0.00591767,2516.4,2516.3,1.09533411]
[1747741026693,3.2078,2516.8,2516.7,0.79445]
[1747741026889,3.2078,2516.8,2516.7,19.00820411]
[1747741027100,2.35688609,2516.9,2516.8,0.79442]
[1747741027300,2.35688609,2516.9,2516.8,2.66467411]
[1747741027501,2.35688609,2516.9,2516.8,6.21788411]
[1747741027796,2.35688609,2516.9,2516.8,11.21722222]
[1747741028002,2.35688609,2516.9,2516.8,11.21722933]
[1747741028702,0.98611057,2517.0,2516.8,11.53513209]
[1747741028903,0.79439,2517.0,2516.9,0.30009933]
[1747741029104,0.79439,2517.0,2516.9,1.84909933]
[1747741029402,0.79439,2517.0,2516.9,4.63001933]
[1747741029696,0.79439,2517.0,2516.9,4.629632]
[1747741030095,0.79439,2517.0,2516.9,4.94753476]
[1747741030597,0.79439,2517.0,2516.9,9.58861476]
[1747741030803,0.79439,2517.0,2516.9,13.12414476]
[1747741031205,0.79439,2517.0,2516.9,13.12405534]
[1747741031392,0.79436,2517.0,2516.9,13.12405534]
[1747741032006,0.79436,2517.0,2516.9,4.15305534]
[1747741032203,0.79436,2517.0,2516.9,13.44976362]
[1747741032504,0.79436,2517.0,2516.9,4.47876362]
[1747741032799,0.79436,2517.0,2516.9,13.15014815]
[1747741033006,0.79436,2517.0,2516.9,13.4496137]
[1747741033204,0.79436,2517.0,2516.9,4.4786137]
[1747741033406,0.79436,2517.0,2516.9,13.4496137]
[1747741033605,0.79436,2517.0,2516.9,4.4786137]
[1747741033805,0.79436,2517.0,2516.9,13.4496137]
[1747741034401,0.79436,2517.0,2516.9,13.12390542]
[1747741034601,0.79436,2517.0,2516.9,13.12379967]
[1747741034805,0.79436,2517.0,2516.9,11.13726967]
[1747741035106,0.79436,2517.0,2516.9,2.16626967]
[1747741035808,0.79436,2517.0,2516.9,11.13626967]
[1747741036307,0.79436,2517.0,2516.9,11.13638746]
[1747741037214,2.78089001,2517.0,2516.9,2.16638746]
[1747741037908,2.78089001,2517.0,2516.9,11.13653857]
[1747741038509,2.78089001,2517.0,2516.9,2.16653857]
[1747741038712,2.78089001,2517.0,2516.9,11.13653857]
[1747741039711,2.78089001,2517.0,2516.9,11.13659806]
[1747741039904,2.86575478,2517.0,2516.9,11.13659806]
[1747741040307,4.44005478,2517.0,2516.9,11.13659806]
[1747741041411,4.44005478,2517.0,2516.9,11.13666717]
[1747741042613,0.87922477,2517.0,2516.9,11.93105717]
[1747741043016,0.87922477,2517.0,2516.9,13.9175797]
[1747741043308,3.2078,2517.5,2517.4,0.79423]
[1747741043507,3.2078,2517.5,2517.4,10.06398694]
[1747741043709,3.2078,2517.5,2517.4,12.05012194]
[1747741043913,0.98611057,2517.7,2517.6,0.79417]
[1747741044110,0.98611057,2517.7,2517.6,1.09391983]
[1747741044315,0.98611057,2517.7,2517.6,3.07990694]
[1747741044614,0.98611057,2517.7,2517.6,9.67300694]
[1747741045213,0.98611057,2517.7,2517.6,10.4762956]
[1747741045516,0.98611057,2517.7,2517.6,23.3842956]
[1747741045715,3.2078,2517.8,2517.7,0.79414]
[1747741045909,3.2078,2517.8,2517.7,2.73638983]
[1747741046105,1.31231071,2518.0,2517.9,0.79407]
[1747741046310,1.31231071,2518.0,2517.9,6.09297452]
[1747741046615,1.31231071,2518.0,2517.9,8.07872162]
[1747741047014,1.31231071,2518.0,2517.9,8.07868947]
[1747741047317,3.2078,2518.1,2518.0,0.79404]
[1747741047521,3.2078,2518.7,2518.4,0.7939]
[1747741047723,0.79385,2518.6,2518.5,10.85297237]
[1747741048018,0.79385,2518.6,2518.5,11.64686948]
[1747741048207,0.79385,2518.6,2518.5,13.63213947]
[1747741049219,0.79385,2518.6,2518.5,13.95004223]
[1747741049420,0.79385,2518.6,2518.5,4.21315223]
[1747741049620,2.77912,2518.6,2518.5,9.55878224]
[1747741049914,4.34002,2518.6,2518.5,9.55818161]
[1747741050613,2.77912,2518.6,2518.5,9.55818161]
[1747741050818,2.77912,2518.6,2518.5,9.24027885]
[1747741051521,2.77912,2518.6,2518.5,9.24009926]
[1747741051818,2.77912,2518.6,2518.5,0.29809926]
[1747741052217,2.77912,2518.6,2518.5,9.23909926]
[1747741053015,2.77912,2518.6,2518.5,8.94100711]
[1747741053218,2.77912,2518.6,2518.5,9.23908123]
[1747741053820,2.77912,2518.6,2518.5,0.29808123]
[1747741053821,4.29492,2518.6,2518.5,0.29808123]
[1747741054025,4.29492,2518.6,2518.5,9.23908123]
[1747741054217,4.29492,2518.6,2518.5,0.29808123]
[1747741054420,4.29492,2518.6,2518.5,9.23908123]
[1747741055027,4.37978477,2518.6,2518.5,9.23908123]
[1747741055320,3.58593477,2518.6,2518.2,0.31790276]
[1747741055624,4.00175,2518.3,2518.2,0.31790276]
[1747741055823,4.00175,2518.3,2518.2,9.25790276]
[1747741056124,5.987255,2518.3,2518.2,9.25790276]
[1747741056923,0.79401,2518.1,2518.0,0.31790276]
[1747741057123,0.79401,2518.1,2518.0,10.80070276]
[1747741057423,2.779675,2518.1,2518.0,10.80070276]
[1747741057624,0.79401,2518.1,2518.0,10.80070276]
[1747741057825,0.79401,2518.1,2518.0,1.86070276]
[1747741058124,0.79401,2518.1,2518.0,10.80070276]
[1747741059625,2.779675,2518.1,2518.0,10.80070276]
[1747741060019,0.79401,2518.1,2518.0,10.80070276]
[1747741060220,2.779675,2518.1,2518.0,9.25790276]
[1747741061124,0.79407,2517.9,2517.8,1.5901]
[1747741061326,4.00187,2517.9,2517.8,10.5301]
[1747741061516,5.98769,2517.9,2517.8,10.5301]
[1747741062724,5.98769,2517.9,2517.8,10.84776483]
[1747741063025,3.2078,2517.9,2517.8,13.62769483]
[1747741063231,3.2078,2518.2,2517.8,12.83358483]
[1747741063434,4.00179,2518.2,2518.1,0.79401]
[1747741063617,3.2078,2518.2,2518.1,0.79401]
[1747741063822,3.2078,2518.2,2518.1,2.779595]
[1747741064323,3.2078,2518.2,2518.1,4.356195]
[1747741064525,3.2078,2518.2,2518.1,4.9171275]
[1747741066123,2.94976038,2518.2,2518.1,9.9171275]
[1747741066726,2.94976038,2518.2,2518.1,9.99829285]
[1747741067532,3.2078,2518.5,2518.2,0.79398]
[1747741067729,4.00169,2518.5,2518.4,0.79392]
[1747741067923,4.00169,2518.5,2518.4,10.01589254]
[1747741068228,4.00169,2518.5,2518.4,13.65147496]
[1747741068632,4.00169,2518.5,2518.4,14.21267864]
[1747741068929,4.00169,2518.5,2518.4,5.27967864]
[1747741069128,3.2078,2518.5,2518.4,14.21967864]
[1747741069726,4.00169,2518.5,2518.4,14.21967864]
[1747741070026,4.00169,2518.5,2518.4,14.21988234]
[1747741071528,4.00169,2518.5,2518.4,14.22023147]
[1747741071725,4.00169,2518.5,2518.4,12.23488147]
[1747741071926,4.00169,2518.5,2518.4,14.22023147]
[1747741072118,4.00169,2518.5,2518.4,14.30112564]
[1747741072325,3.2078,2518.5,2518.4,14.30112564]
[1747741073032,2.82077676,2518.5,2518.4,14.30112564]
[1747741073231,2.34443644,2518.5,2518.4,14.30164825]
[1747741073729,3.13832644,2518.5,2518.4,14.30164825]
[1747741073930,3.13832644,2518.5,2518.4,2.58237825]
[1747741074125,5.12367644,2518.5,2518.4,9.99517825]
[1747741074327,10.12367644,2518.5,2518.4,9.99517825]
[1747741074524,10.12367644,2518.5,2518.4,1.21713113]
[1747741074830,0.79407,2517.9,2517.8,8.939]
[1747741075031,4.00187,2517.9,2517.8,8.939]
[1747741075230,5.98769,2517.9,2517.8,8.939]
[1747741075636,0.79417,2517.6,2517.5,42.39205283]
[1747741075830,0.79417,2517.6,2517.5,49.77475283]
[1747741076031,2.78023001,2517.6,2517.5,49.77475283]
[1747741076226,2.78023001,2517.6,2517.5,49.29031676]
[1747741076431,5.98803001,2517.6,2517.5,49.29031676]
[1747741077636,5.98803001,2517.6,2517.5,9.23631676]
[1747741078036,5.98803001,2517.6,2517.5,8.91]
[1747741078336,0.7942,2517.5,2517.4,0.24457384]
[1747741078535,2.3475,2517.5,2517.4,0.24457384]
[1747741078731,9.33363501,2517.5,2517.4,0.24457384]
[1747741079639,0.79423,2517.4,2517.3,8.91]
[1747741079936,0.79423,2517.4,2517.1,1e-08]
[1747741079937,0.7943,2517.2,2517.1,1e-08]
[1747741080136,4.0021,2517.2,2517.1,1e-08]
[1747741080432,0.79452,2516.5,2516.4,0.81075283]
[1747741080629,4.00232,2516.5,2516.4,0.81075283]
[1747741080828,5.989245,2516.5,2516.4,0.81075283]
[1747741081437,0.79474,2515.8,2515.7,12.64561522]
[1747741081734,4.00254,2515.8,2515.7,8.911]
[1747741082036,5.99002001,2515.8,2515.7,8.911]
[1747741082341,5.99002001,2515.8,2515.7,11.20817]
[1747741082736,5.99002001,2515.8,2515.7,10.4134]
[1747741082939,5.99002001,2515.8,2515.7,11.20817]
[1747741083235,5.99002001,2515.8,2515.7,8.911]
[1747741084434,5.99002001,2515.8,2515.7,9.70577]
[1747741084634,5.99002001,2515.8,2515.7,8.911]
[1747741085539,6.07488478,2515.8,2515.7,8.911]
[1747741086045,6.07488478,2515.8,2515.7,9.70577]
[1747741086341,6.07488478,2515.8,2515.7,8.911]
[1747741086636,0.7948,2515.6,2515.5,0.00595758]
[1747741086841,0.7948,2515.6,2515.5,9.2301757]
[1747741087137,2.782435,2515.6,2515.5,9.35438091]
[1747741087337,2.782435,2515.6,2515.5,0.43938091]
[1747741087739,2.782435,2515.6,2515.5,9.35438091]
[1747741088126,2.782435,2515.6,2515.5,9.35409314]
[1747741088327,2.782435,2515.6,2515.5,10.14892314]
[1747741088534,5.65203477,2515.8,2515.7,0.79477]
[1747741088732,5.65203477,2515.8,2515.7,0.91897521]
[1747741088933,7.63951478,2515.8,2515.7,0.91897521]
[1747741089133,6.84474478,2515.8,2515.7,0.91897521]
[1747741089334,4.08740477,2515.8,2515.7,0.91897521]
[1747741089534,6.07488478,2515.8,2515.7,0.12420521]
[1747741089739,6.07488478,2515.8,2515.7,9.04020521]
[1747741091037,6.07488478,2515.8,2515.7,8.916]
[1747741091239,0.7948,2515.6,2515.5,0.80078758]
[1747741091440,0.7948,2515.6,2515.5,0.00595758]
[1747741091743,2.782435,2515.6,2515.5,9.04716234]
[1747741092140,2.782435,2515.6,2515.5,8.92295758]
[1747741092839,2.782435,2515.6,2515.5,0.00595758]
[1747741093030,2.782435,2515.6,2515.5,8.92295758]
[1747741093630,4.298835,2515.6,2515.5,8.92295758]
[1747741096139,0.7948,2515.6,2515.5,8.92295758]
[1747741096445,0.7948,2515.6,2515.5,9.04716186]
[1747741096641,2.782435,2515.6,2515.5,9.04716186]
[1747741097447,0.7948,2515.6,2515.5,11.03479685]
[1747741097641,3.29266477,2515.8,2515.7,0.79477]
[1747741097846,4.08743477,2515.8,2515.7,0.12420428]
[1747741098047,6.07491478,2515.8,2515.7,0.12420428]
[1747741098242,6.07491478,2515.8,2515.7,9.04320428]
[1747741099045,6.07491478,2515.8,2515.7,0.12420428]
[1747741099245,6.07491478,2515.8,2515.7,9.04320428]
[1747741099649,5.99005001,2515.8,2515.7,9.04320428]
[1747741101557,5.99005001,2515.8,2515.7,9.35241035]
[1747741103258,5.99005001,2515.8,2515.7,9.3531658]
[1747741103758,5.99005001,2515.8,2515.7,10.1479358]
[1747741103961,4.00257,2515.8,2515.7,12.1354158]
[1747741104161,4.00257,2515.8,2515.7,12.13543971]
[1747741104463,3.2078,2515.8,2515.7,12.13543971]
[1747741104961,0.79473,2515.9,2515.8,0.79474]
[1747741105162,0.79473,2515.9,2515.8,2.62213572]
[1747741105362,0.79473,2515.9,2515.8,4.73373999]
[1747741105562,5.19444,2516.1,2515.8,4.73373999]
[1747741105563,0.79467,2516.1,2515.8,8.93899999]
[1747741105758,0.79467,2516.0,2515.9,10.04718572]
[1747741105964,0.79467,2516.0,2515.9,0.31049572]
[1747741106261,0.79467,2516.0,2515.9,11.34102]
[1747741106457,2.78199,2516.0,2515.9,9.67165237]
[1747741106654,0.79467,2516.0,2515.9,9.67217295]
[1747741106856,2.78199,2516.0,2515.9,9.67217295]
[1747741107468,0.79467,2516.1,2515.9,11.65949295]
[1747741107673,0.79467,2516.1,2516.0,1.9403163]
[1747741108067,0.79467,2516.1,2516.0,2.06452058]
[1747741108261,2.78191,2516.1,2516.0,2.38247295]
[1747741108863,2.78191,2516.1,2516.0,3.92697295]
[1747741109065,2.78191,2516.1,2516.0,4.72164295]
[1747741109267,2.78191,2516.1,2516.0,3.92697295]
[1747741109467,0.79467,2516.1,2516.0,6.70888295]
[1747741109663,0.79467,2516.1,2516.0,5.91421295]
[1747741110071,0.40723041,2516.1,2516.0,5.91547232]
[1747741110669,2.39447041,2516.1,2516.0,3.92823232]
[1747741110863,2.39447041,2516.1,2516.0,12.81623232]
[1747741111660,2.39447041,2516.1,2516.0,12.50395665]
[1747741111863,0.40723041,2516.1,2516.0,14.80355097]
[1747741112066,0.40723041,2516.1,2516.0,15.13079485]
[1747741112866,2.39447041,2516.1,2516.0,13.14355485]
[1747741113367,2.39447041,2516.1,2516.0,13.14350485]
[1747741114959,0.49209518,2516.1,2516.0,13.14350485]
[1747741115169,0.49209518,2516.1,2516.0,13.14344867]
[1747741115669,2.47933518,2516.1,2516.0,13.14344867]
[1747741116072,0.49209518,2516.1,2516.0,15.92535867]
[1747741116674,0.49209518,2516.1,2516.0,15.61311053]
[1747741116875,0.49209518,2516.1,2516.0,15.9252706]
[1747741117068,0.08486477,2516.1,2516.0,15.9252706]
[1747741117262,0.08486477,2516.1,2516.0,20.9252706]
[1747741117467,0.79463,2516.2,2516.1,0.79464]
[1747741117667,0.79463,2516.2,2516.1,2.63400007]
[1747741117965,0.79463,2516.2,2516.1,4.74536934]
[1747741118375,0.79463,2516.2,2516.1,4.74520971]
[1747741118575,0.79458,2516.4,2516.3,0.79454]
[1747741118875,0.79458,2516.4,2516.3,10.11874472]
[1747741119067,0.79449,2516.5,2516.3,11.31120972]
[1747741119273,0.79449,2516.5,2516.4,2.73227044]
[1747741119476,0.79449,2516.5,2516.4,2.85647472]
[1747741119776,0.00595758,2516.7,2516.5,0.79442]
[1747741120069,0.80033758,2516.7,2516.6,2.85641472]
[1747741120271,0.00595758,2516.7,2516.6,2.85641472]
[1747741120474,0.00595758,2516.7,2516.6,4.84318472]
[1747741120676,0.00595758,2516.7,2516.6,9.84318472]
[1747741121073,0.79427,2517.1,2517.0,0.79429]
[1747741121274,0.79425,2517.2,2517.1,0.79424]
[1747741121571,4.00202,2517.3,2517.2,0.79423]
[1747741121771,0.79426,2517.1,2517.0,0.12420428]
[1747741121967,0.79426,2517.1,2517.0,9.31852406]
[1747741122174,2.78071,2517.1,2517.0,9.31852406]
[1747741122672,2.78071,2517.1,2517.0,9.63647643]
[1747741123073,0.79426,2517.1,2517.0,9.63647643]
[1747741123473,2.78071,2517.1,2517.0,11.1830708]
[1747741123673,0.79426,2517.1,2517.0,11.1830708]
[1747741123875,2.78071,2517.1,2517.0,11.1830708]
[1747741126774,2.78071,2517.1,2517.0,9.63633376]
[1747741127673,0.79426,2517.1,2517.0,9.31838139]
[1747741127877,2.78071,2517.1,2517.0,9.31838139]
[1747741128177,2.78071,2517.1,2517.0,0.43138139]
[1747741128375,2.78071,2517.1,2517.0,9.31738139]
[1747741128579,4.42081,2517.1,2517.0,9.31742579]
[1747741128777,4.42081,2517.1,2517.0,0.43142579]
[1747741128971,4.42081,2517.1,2517.0,9.31742579]
[1747741130177,4.50567477,2517.1,2517.0,9.31734977]
[1747741130574,2.86557477,2517.1,2517.0,9.31734977]
[1747741130774,0.87912477,2517.1,2517.0,11.30379977]
[1747741130969,0.87912477,2517.1,2517.0,12.88439977]
[1747741131875,0.87912477,2517.1,2517.0,12.88448764]
[1747741132782,0.87912477,2517.1,2517.0,10.89803764]
[1747741135083,0.87912477,2517.1,2517.0,11.21581516]
[1747741135290,0.87912477,2517.1,2517.0,11.21592742]
[1747741135482,0.87912477,2517.1,2517.0,13.20237742]
[1747741136279,0.87912477,2517.1,2517.0,13.99666742]
[1747741136680,0.87912477,2517.1,2517.0,13.20237742]
[1747741136881,0.08486477,2517.1,2517.0,13.99666742]
[1747741138087,0.79423,2517.2,2517.1,0.79426]
[1747741138288,0.79423,2517.2,2517.1,1.10160562]
[1747741138587,0.79423,2517.2,2517.1,3.08789988]
[1747741138887,0.79423,2517.2,2517.1,3.21210416]
[1747741139085,0.79423,2517.2,2517.1,3.52988168]
[1747741139390,0.80017758,2517.3,2517.2,0.79423]
[1747741139577,0.80017758,2517.3,2517.2,2.69369488]
[1747741139782,0.80017758,2517.3,2517.2,4.80419416]
[1747741141290,0.80017758,2517.3,2517.2,5.12197168]
[1747741141589,0.80017758,2517.3,2517.2,4.32774168]
[1747741141786,0.80017758,2517.3,2517.2,5.12197168]
[1747741141984,0.80017758,2517.3,2517.2,5.1213667]
[1747741142384,0.80017758,2517.3,2517.2,4.3271367]
[1747741142788,0.80017758,2517.3,2517.2,5.36570904]
[1747741143487,2.78647259,2517.3,2517.2,9.84798404]
[1747741143684,2.78647259,2517.3,2517.2,9.84815051]
[1747741143885,2.78647259,2517.3,2516.9,0.4841816]
[1747741143886,1.98561,2517.2,2516.9,0.4841816]
[1747741144087,0.79429,2517.0,2516.9,0.4841816]
[1747741144393,2.78082001,2517.0,2516.9,0.4841816]
[1747741144592,0.79432,2516.9,2516.8,8.86095758]
[1747741144894,4.36953,2516.9,2516.8,8.86095758]
[1747741145287,4.36953,2516.9,2516.8,11.30330758]
[1747741146290,2.78093,2516.9,2516.8,11.30330758]
[1747741146487,0.79432,2516.9,2516.8,11.30330758]
[1747741147094,0.79432,2516.9,2516.8,13.28991758]
[1747741147392,0.79431,2517.0,2516.9,0.79429]
[1747741147597,0.79431,2517.0,2516.9,2.44229]
[1747741147894,0.79428,2517.1,2517.0,0.79425]
[1747741148193,0.79428,2517.1,2517.0,2.39725]
[1747741148790,0.79425,2517.2,2517.1,0.79423]
[1747741149088,0.79425,2517.2,2517.1,9.64923]
[1747741149399,0.09082235,2517.3,2517.2,0.79423]
[1747741149692,0.09082235,2517.3,2517.2,5.60503]
[1747741149890,3.33826211,2517.8,2517.7,0.79407]
[1747741150083,3.33826211,2517.8,2517.7,14.84277]
[1747741151091,0.98137602,2517.8,2517.7,14.84277]
[1747741152605,0.79392,2518.2,2518.1,0.79392]
[1747741152901,0.79392,2518.2,2518.1,9.64792]
[1747741153091,0.79392,2518.2,2518.1,11.633505]
[1747741154795,0.79392,2518.2,2518.1,14.841305]
[1747741155897,0.79387,2518.4,2518.1,14.34355453]
[1747741156096,2.59677602,2518.6,2518.2,2.08353288]
[1747741156297,0.79387,2518.4,2518.3,2.75331953]
[1747741156599,1.77516602,2518.6,2518.5,0.79382]
[1747741156791,0.79378,2518.7,2518.5,12.35696953]
[1747741156989,0.79375,2518.7,2518.6,1.6633]
[1747741157196,0.79375,2518.7,2518.6,3.71938722]
[1747741157395,0.79375,2518.8,2518.7,0.79373]
[1747741157598,0.79375,2518.8,2518.7,1.20884985]
[1747741157895,0.79375,2518.8,2518.7,0.41998722]
[1747741159304,2.77886,2518.8,2518.7,9.58957679]
[1747741159603,2.77886,2518.8,2518.7,0.73757679]
[1747741160197,2.77886,2518.8,2518.7,0.73721334]
[1747741160405,2.77886,2518.8,2518.7,0.73718709]
[1747741161002,2.77886,2518.8,2518.7,0.41959752]
[1747741161203,6.98511,2518.8,2518.2,3.2078]
[1747741161398,0.79385,2518.4,2518.3,3.09e-06]
[1747741161794,0.79391,2518.2,2518.1,0.00595758]
[1747741162300,2.779495,2518.2,2518.1,0.00595758]
[1747741163102,0.79391,2518.2,2518.1,1.99154258]
[1747741163600,5.273,2518.5,2518.1,5.34814258]
[1747741163905,0.79388,2518.3,2518.2,12.0588]
[1747741164093,0.79388,2518.3,2518.2,13.7423]
[1747741164298,0.79388,2518.3,2518.2,15.72780499]
[1747741164499,0.79388,2518.3,2518.2,16.04539928]
[1747741164704,0.79388,2518.3,2518.2,12.83759928]
[1747741164905,0.79388,2518.3,2518.2,10.85209429]
[1747741165398,0.79388,2518.3,2518.2,12.83759928]
[1747741167708,1.5678,2518.7,2518.3,0.79387]
[1747741167915,1.98423,2518.9,2518.5,3.2078]
[1747741168104,0.79369,2518.9,2518.8,3.2078]
[1747741168502,2.778725,2518.9,2518.8,3.2078]
[1747741168713,0.79372,2518.8,2518.7,3.2145]
[1747741169007,0.79378,2518.6,2518.5,3.2078]
[1747741169208,0.79378,2518.6,2518.5,8.817]
[1747741169407,0.79378,2518.6,2518.5,10.80226999]
[1747741170608,0.79377,2518.7,2518.5,10.80226999]
[1747741170801,1.98423,2518.9,2518.5,10.80215]
[1747741171007,0.79372,2518.8,2518.7,3.2078]
[1747741171509,0.79371,2518.9,2518.7,5.98666]
[1747741171812,0.79369,2518.9,2518.8,0.79372]
[1747741172006,0.79369,2518.9,2518.7,6.3041207]
[1747741172516,0.79372,2518.8,2518.7,0.3175207]
[1747741172713,0.79372,2518.8,2518.7,3.5253207]
[1747741172910,0.79372,2518.8,2518.7,5.5104307]
[1747741173415,0.79372,2518.8,2518.7,5.92685991]
[1747741173615,0.79372,2518.8,2518.7,2.71905991]